fUSD/lending_fUSD_20250110
["ID","MTS","AMOUNT","RATE_DAILY","PERIOD"]
[348400610,1736509840310,-500.0,9.995e-05,2]
[348400611,1736509840319,-569.28,9.995e-05,2]
[348400612,1736509840328,-500.0,9.995e-05,2]
[348400613,1736509840336,-500.0,9.995e-05,2]
[348400614,1736509840346,-500.0,9.995e-05,2]
[348400615,1736509840357,-540.50589713,9.995e-05,2]
[348400616,1736509840366,-500.0,9.995e-05,2]
[348400617,1736509840375,-500.0,9.995e-05,2]
[348400618,1736509840385,-500.0,9.995e-05,2]
[348400619,1736509840394,-500.0,9.995e-05,2]
[348400620,1736509840404,-2069.74,9.995e-05,2]
[348400621,1736509840413,-500.0,9.995e-05,2]
[348400622,1736509840422,-310.82688619,9.995e-05,2]
[348400623,1736509840432,-500.0,9.995e-05,2]
[348400624,1736509840441,-500.0,9.995e-05,2]
[348400625,1736509840450,-500.0,9.995e-05,2]
[348400626,1736509840459,-500.0,9.995e-05,2]
[348400627,1736509840469,-500.0,9.995e-05,2]
[348400628,1736509840478,-4744.56,9.995e-05,2]
[348400629,1736509840487,-500.0,9.995e-05,2]
[348400630,1736509840496,-500.0,9.995e-05,2]
[348400631,1736509840506,-500.0,9.995e-05,2]
[348400632,1736509840515,-500.0,9.995e-05,2]
[348400633,1736509840524,-500.0,9.995e-05,2]
[348400634,1736509840534,-500.0,9.995e-05,2]
[348400635,1736509840543,-500.0,9.995e-05,2]
[348400636,1736509840552,-500.0,9.995e-05,2]
[348400637,1736509840562,-500.0,9.995e-05,2]
[348400638,1736509840572,-500.0,9.995e-05,2]
[348400639,1736509840581,-500.0,9.995e-05,2]
[348400640,1736509840591,-500.0,9.995e-05,2]
[348400641,1736509840600,-500.0,9.995e-05,2]
[348400642,1736509840609,-500.0,9.995e-05,2]
[348400643,1736509840618,-500.0,9.995e-05,2]
[348400644,1736509840627,-500.0,9.995e-05,2]
[348400645,1736509840637,-500.0,9.995e-05,2]
[348400646,1736509840646,-566.33,9.995e-05,2]
[348400647,1736509840655,-758.97,9.995e-05,2]
[348400648,1736509840665,-500.0,9.995e-05,2]
[348400649,1736509840674,-613.03,9.995e-05,2]
[348400650,1736509840684,-500.0,9.995e-05,2]
[348400651,1736509840694,-500.0,9.995e-05,2]
[348400652,1736509840704,-579.11,9.995e-05,2]
[348400653,1736509840713,-500.0,9.995e-05,2]
[348400654,1736509840723,-566.48,9.995e-05,2]
[348400655,1736509840732,-500.0,9.995e-05,2]
[348400656,1736509840742,-500.0,9.995e-05,2]
[348400657,1736509840751,-500.0,9.995e-05,2]
[348400658,1736509840761,-641.22,9.995e-05,2]
[348400659,1736509840770,-500.0,9.995e-05,2]
[348400661,1736509840779,-583.43,9.995e-05,2]
[348400663,1736509840789,-654.99,9.995e-05,2]
[348400665,1736509840797,-319.13088966,9.995e-05,2]
[348400667,1736509840808,-746.11,9.995e-05,2]
[348400668,1736509840818,-1615.06,9.995e-05,2]
[348400669,1736509840827,-500.0,9.995e-05,2]
[348400670,1736509840836,-500.0,9.995e-05,2]
[348400671,1736509840846,-667.57,9.995e-05,2]
[348400672,1736509840855,-500.0,9.995e-05,2]
[348400673,1736509840865,-500.0,9.995e-05,2]
[348400674,1736509840874,-606.18,9.995e-05,2]
[348400675,1736509840884,-500.0,9.995e-05,2]
[348400676,1736509840893,-695.84,9.996e-05,2]
[348400677,1736509840903,-891.78,9.996e-05,2]
[348400678,1736509840913,-1069.14,9.996e-05,2]
[348400679,1736509840922,-1000.0,9.996e-05,2]
[348400680,1736509840931,-810.29,9.996e-05,2]
[348400681,1736509840941,-500.0,9.996e-05,2]
[348400682,1736509840950,-840.8,9.996e-05,2]
[348400683,1736509840960,-500.0,9.997e-05,2]
[348400684,1736509840971,-561.63,9.997e-05,2]
[348400685,1736509840980,-617.55,9.997e-05,2]
[348400686,1736509840990,-500.0,9.997e-05,2]
[348400687,1736509840999,-707.86,9.997e-05,2]
[348400688,1736509841009,-532.11,9.997e-05,2]
[348400689,1736509841018,-506.5,9.997e-05,2]
[348400690,1736509841028,-615.4,9.997e-05,2]
[348400691,1736509841038,-500.0,9.997e-05,2]
[348400692,1736509841048,-500.0,9.997e-05,2]
[348400693,1736509841058,-500.0,9.997e-05,2]
[348400694,1736509841068,-598.9,9.997e-05,2]
[348400695,1736509841078,-537.04460689,9.997e-05,2]
[348400696,1736509841088,-575.58,9.997e-05,2]
[348400698,1736509841098,-500.0,9.997e-05,2]
[348400700,1736509841108,-583.8,9.997e-05,2]
[348400702,1736509841118,-500.0,9.997e-05,2]
[348400703,1736509841127,-500.0,9.997e-05,2]
[348400705,1736509841137,-500.0,9.997e-05,2]
[348400707,1736509841147,-500.0,9.997e-05,2]
[348400709,1736509841157,-500.0,9.997e-05,2]
[348400710,1736509841166,-604.41,9.997e-05,2]
[348400711,1736509841176,-181.94,9.997e-05,2]
[348400712,1736509841186,-500.0,9.997e-05,2]
[348400713,1736509841196,-500.0,9.997e-05,2]
[348400714,1736509841205,-500.0,9.997e-05,2]
[348400715,1736509841215,-952.09,9.997e-05,2]
[348400716,1736509841226,-500.0,9.997e-05,2]
[348400717,1736509841235,-666.87,9.997e-05,2]
[348400718,1736509841245,-500.0,9.997e-05,2]
[348400719,1736509841255,-500.0,9.997e-05,2]
[348400720,1736509841264,-500.0,9.997e-05,2]
[348400721,1736509841274,-517.49,9.997e-05,2]
[348400722,1736509841284,-500.0,9.997e-05,2]
[348400723,1736509841294,-1471.98,9.997e-05,2]
[348400724,1736509841304,-500.0,9.997e-05,2]
[348400725,1736509841313,-670.06,9.997e-05,2]
[348400726,1736509841322,-653.2,9.997e-05,2]
[348400727,1736509841332,-500.0,9.997e-05,2]
[348400728,1736509841342,-2357.69,9.997e-05,2]
[348400729,1736509841352,-500.0,9.997e-05,2]
[348400730,1736509841361,-696.97,9.997e-05,2]
[348400731,1736509841370,-597.85,9.997e-05,2]
[348400732,1736509841379,-602.9,9.997e-05,2]
[348400733,1736509841388,-506.41042484,9.997e-05,2]
[348400734,1736509841397,-609.7,9.997e-05,2]
[348400735,1736509841407,-504.57,9.997e-05,2]
[348400736,1736509841417,-659.73,9.997e-05,2]
[348400737,1736509841426,-500.0,9.997e-05,2]
[348400738,1736509841435,-634.74,9.997e-05,2]
[348400739,1736509841445,-598.45,9.997e-05,2]
[348400740,1736509841455,-500.0,9.997e-05,2]
[348400741,1736509841464,-500.0,9.997e-05,2]
[348400742,1736509841474,-1011.52,9.997e-05,2]
[348400743,1736509841483,-550.59,9.997e-05,2]
[348400744,1736509841493,-662.32,9.997e-05,2]
[348400745,1736509841503,-557.36,9.997e-05,2]
[348400746,1736509841512,-585.99,9.997e-05,2]
[348400747,1736509841522,-547.95,9.997e-05,2]
[348400748,1736509841532,-742.57,9.997e-05,2]
[348400749,1736509841541,-791.5,9.997e-05,2]
[348400750,1736509841550,-2243.08,9.997e-05,2]
[348400751,1736509841559,-756.83,9.997e-05,2]
[348400752,1736509841568,-557.71,9.997e-05,2]
[348400753,1736509841577,-765.28,9.997e-05,2]
[348400754,1736509841586,-586.02,9.997e-05,2]
[348400755,1736509841595,-2990.34,9.997e-05,2]
[348400756,1736509841603,-548.71,9.997e-05,2]
[348400757,1736509841612,-601.79,9.997e-05,2]
[348400758,1736509841622,-633.49,9.997e-05,2]
[348400759,1736509841631,-500.0,9.997e-05,2]
[348400760,1736509841640,-2500.97,9.997e-05,2]
[348400761,1736509841649,-500.0,9.997e-05,2]
[348400762,1736509841659,-500.0,9.997e-05,2]
[348400763,1736509841668,-721.21,9.997e-05,2]
[348400764,1736509841678,-500.0,9.997e-05,2]
[348400765,1736509841687,-2428.47,9.997e-05,2]
[348400766,1736509841697,-563.4,9.997e-05,2]
[348400767,1736509841706,-500.0,9.997e-05,2]
[348400768,1736509841718,-500.0,9.997e-05,2]
[348400769,1736509841728,-2608.26,9.997e-05,2]
[348400770,1736509841737,-756.9,9.997e-05,2]
[348400771,1736509841747,-680.94,9.997e-05,2]
[348400772,1736509841757,-987.79,9.997e-05,2]
[348400773,1736509841766,-500.0,9.997e-05,2]
[348400774,1736509841775,-500.0,9.997e-05,2]
[348400775,1736509841786,-600.47,9.997e-05,2]
[348400776,1736509841796,-640.88,9.997e-05,2]
[348400777,1736509841805,-500.0,9.997e-05,2]
[348400778,1736509841814,-500.0,9.997e-05,2]
[348400779,1736509841824,-525.85351917,9.997e-05,2]
[348400780,1736509841833,-503.93246675,9.997e-05,2]
[348400781,1736509841843,-583.07,9.997e-05,2]
[348400782,1736509841852,-837.37,9.997e-05,2]
[348400783,1736509841862,-500.0,9.997e-05,2]
[348400784,1736509841871,-7853.13,9.997e-05,2]
[348400785,1736509841880,-557.96,9.997e-05,2]
[348400786,1736509841889,-817.2,9.997e-05,2]
[348400787,1736509841898,-500.0,9.997e-05,2]
[348400788,1736509841908,-500.0,9.997e-05,2]
[348400789,1736509841917,-778.34,9.997e-05,2]
[348400790,1736509841926,-500.0,9.997e-05,2]
[348400791,1736509841936,-500.0,9.997e-05,2]
[348400792,1736509841945,-683.38,9.997e-05,2]
[348400793,1736509841955,-994.09,9.997e-05,2]
[348400794,1736509841964,-500.0,9.997e-05,2]
[348400795,1736509841976,-500.0,9.997e-05,2]
[348400796,1736509841985,-500.0,9.997e-05,2]
[348400797,1736509841995,-500.0,9.997e-05,2]
[348400798,1736509842004,-500.0,9.997e-05,2]
[348400799,1736509842014,-789.83,9.997e-05,2]
[348400800,1736509842024,-500.0,9.997e-05,2]
[348400801,1736509842033,-500.0,9.997e-05,2]
[348400802,1736509842043,-1593.02,9.997e-05,2]
[348400803,1736509842052,-500.0,9.997e-05,2]
[348400804,1736509842062,-268.28155592,9.998e-05,2]
[348400805,1736509842071,-1919.57,9.998e-05,2]
[348400806,1736509842081,-862.29,9.999e-05,2]
[348400807,1736509842091,-500.0,9.999e-05,2]
[348400808,1736509842100,-3031.96,9.999e-05,2]
[348400809,1736509842110,-1388.1,9.999e-05,2]
[348400810,1736509842120,-1785.47,9.999e-05,2]
[348400811,1736509842129,-1368.86,9.999e-05,2]
[348400812,1736509842139,-1311.82,9.999e-05,2]
[348400813,1736509842148,-500.0,9.999e-05,2]
[348400814,1736509842159,-875.55,9.999e-05,2]
[348400815,1736509842168,-2181.55,9.999e-05,2]
[348400816,1736509842179,-526.13,9.999e-05,2]
[348400817,1736509842189,-934.33,9.999e-05,2]
[348400818,1736509842199,-918.96,9.999e-05,2]
[348400819,1736509842209,-997.57,9.999e-05,2]
[348400820,1736509842221,-796.33,9.999e-05,2]
[348400821,1736509842231,-1031.21,9.999e-05,2]
[348400822,1736509842241,-965.16,9.999e-05,2]
[348400823,1736509842250,-7853.13,9.999e-05,2]
[348400824,1736509842259,-7853.13,9.999e-05,2]
[348400825,1736509842273,-7853.13,9.999e-05,2]
[348400826,1736509842285,-7853.13,9.999e-05,2]
[348400827,1736509842293,-7853.13,9.999e-05,2]
[348400828,1736509842302,-7853.13,9.999e-05,2]
[348400829,1736509842311,-7853.13,9.999e-05,2]
[348400830,1736509842322,-7853.13,9.999e-05,2]
[348400831,1736509842332,-7853.13,9.999e-05,2]
[348400832,1736509842341,-7853.13,9.999e-05,2]
[348400833,1736509842351,-780.24,9.999e-05,2]
[348400834,1736509842361,-7853.13,9.999e-05,2]
[348400835,1736509842371,-7853.13,9.999e-05,2]
[348400836,1736509842381,-7853.13,9.999e-05,2]
[348400837,1736509842391,-7853.13,9.999e-05,2]
[348400838,1736509842400,-7853.13,9.999e-05,2]
[348400839,1736509842409,-7853.13,9.999e-05,2]
[348400840,1736509842419,-7853.13,9.999e-05,2]
[348400841,1736509842428,-7853.13,9.999e-05,2]
[348400842,1736509842439,-7853.13,9.999e-05,2]
[348400843,1736509842450,-7853.13,9.999e-05,2]
[348400844,1736509842460,-7853.13,9.999e-05,2]
[348400845,1736509842471,-7853.13,9.999e-05,2]
[348400846,1736509842480,-7853.20429767,9.999e-05,2]
[348400847,1736509842489,-500.0,9.999e-05,2]
[348400848,1736509842498,-894.37,9.999e-05,2]
[348400849,1736509842507,-1797.74,9.999e-05,2]
[348400850,1736509842516,-500.0,9.999e-05,2]
[348400851,1736509842526,-205.59955707,9.999e-05,2]
[348400852,1736509842537,-1062.0,0.0001,2]
[348400853,1736509842549,-2200056.63195962,0.0001,2]
[348400854,1736509842565,-4042.16836142,0.0001,2]
[348400855,1736509842576,-385.87238127,0.0001,2]
[348400856,1736509842598,-1516.19512172,0.0001,2]
[348400857,1736509842609,-6853.07281286,0.0001,2]
[348400858,1736509842628,-647.08956213,0.0001,2]
[348400870,1736509843286,-632.97,9.993e-05,2]
[348400871,1736509843296,-591.26,9.994e-05,2]
[348400872,1736509843307,-1533.0185662,0.0001,2]
[348400873,1736509843418,-330.52207907,0.0001,2]
[348400874,1736509843430,-500.0,0.0001,2]
[348400915,1736509844147,-565.99,9.997e-05,2]
[348400916,1736509844156,-549.26000125,0.0001,2]
[348400917,1736509844168,-2699.828592,0.0001,2]
[348400918,1736509844179,-14285.92213661,0.0001,2]
[348400919,1736509844189,-765192.90269409,0.0001,2]
[348400920,1736509844215,-500.0,9.997e-05,2]
[348400921,1736509844224,-1176579.49310258,0.0001,2]
[348400922,1736509844235,-1668.02297108,0.0001,2]
[348400923,1736509844247,-993.12736041,0.0001,2]
[348400925,1736509846256,-3065.62537981,9.994e-05,2]
[348400926,1736509846305,-2074.08462019,9.994e-05,2]
[348400927,1736509846314,-500.0,9.997e-05,2]
[348400928,1736509846325,-35068.77175651,0.0001,2]
[348400929,1736509846351,-381.96129508,0.0001,2]
[348400930,1736509846362,-958.56,0.0001,2]
[348400931,1736509846497,-37996.9756343,0.0001,2]
[348400933,1736510103666,162.0,0.0001,30]
[348400938,1736510403126,162.0254861,0.0001,30]
[348400939,1736510623557,812.64,8.219e-05,2]
[348400986,1736511032430,-150.0,9e-05,2]
[348400987,1736511032440,-150.0,9e-05,2]
[348400988,1736511032449,-740.47,9.013e-05,2]
[348400989,1736511032459,-263.95,9.013e-05,2]
[348400990,1736511032468,-3673.64733953,9.022e-05,2]
[348400991,1736511032479,-644.666761,9.022e-05,2]
[348400992,1736511032494,-100.75589947,9.022e-05,2]
[348400993,1736511032503,-622.53,9.024e-05,2]
[348400994,1736511032512,-250.0,9.044e-05,2]
[348400995,1736511032522,-1000.0,9.192e-05,2]
[348400996,1736511032531,-250.0,9.213e-05,2]
[348400997,1736511032540,-500.0,9.699e-05,2]
[348400998,1736511032549,-150.0,9.799e-05,2]
[348400999,1736511032558,-2183.44535574,9.8e-05,2]
[348401000,1736511032675,-2373.74434704,9.8e-05,2]
[348401001,1736511032686,-254.10333359,9.8e-05,2]
[348401002,1736511032716,-34977.98139878,9.8e-05,2]
[348401003,1736511032855,-10006.19296002,9.8e-05,2]
[348401004,1736511032867,-8229.5455365,9.8e-05,2]
[348401005,1736511032878,-450.1191911,9.8e-05,2]
[348401006,1736511032888,-1107.64615845,9.8e-05,2]
[348401058,1736511038258,-492.3,9.8e-05,2]
[348401059,1736511038272,-47519.0,9.8e-05,2]
[348401061,1736511038690,-1054.06413459,9.8e-05,2]
[348401062,1736511038704,-315.30892498,9.8e-05,2]
[348401063,1736511038715,-206.436407,9.8e-05,2]
[348401064,1736511038729,-503.598,9.8e-05,2]
[348401065,1736511038742,-303.965593,9.8e-05,2]
[348401066,1736511038753,-238.954407,9.895e-05,2]
[348401067,1736511038765,-2297.51759701,9.895e-05,2]
[348401068,1736511038778,-10886.84669599,9.895e-05,2]
[348401069,1736511038789,-500.0,9.899e-05,2]
[348401070,1736511038800,-437.83,9.9e-05,2]
[348401071,1736511038811,-182280.85869827,9.9e-05,2]
[348401072,1736511038823,-90665.74358268,9.9e-05,2]
[348401073,1736511038872,-2080.000001,9.9e-05,2]
[348401074,1736511038886,-901.56558747,9.9e-05,2]
[348401075,1736511038899,-1972.34,9.9e-05,2]
[348401076,1736511038912,-699.54,9.9e-05,2]
[348401077,1736511038928,-2461.68242335,9.9e-05,2]
[348401140,1736511040357,-594.34697304,9.9e-05,2]
[348401141,1736511040370,-94755.0,9.9e-05,2]
[348401142,1736511040464,-790.64458135,9.9e-05,2]
[348401143,1736511040477,-1001.98995661,9.9e-05,2]
[348401144,1736511040489,-2097.872,9.9e-05,2]
[348401145,1736511040517,-1906.0,9.9e-05,2]
[348401146,1736511040530,-76250.35993356,9.9e-05,2]
[348401147,1736511040571,-6212.30144605,9.9e-05,2]
[348401148,1736511040583,-963.39051514,9.9e-05,2]
[348401149,1736511040596,-348.7192708,9.9e-05,2]
[348401160,1736511043404,-9504.6486908,9.9e-05,2]
[348401161,1736511043416,-1725.75,9.9e-05,2]
[348401162,1736511043429,-438.6608822,9.9e-05,2]
[348401163,1736511043457,-20237.7693523,9.9e-05,2]
[348401164,1736511043510,-335.899903,9.9e-05,2]
[348401166,1736511043670,-61551.91620238,9.9e-05,2]
[348401167,1736511043680,-2024.77276391,9.914e-05,2]
[348401168,1736511043692,-2024.77276391,9.952e-05,2]
[348401169,1736511043704,-150.0,9.973e-05,2]
[348401170,1736511043715,-2024.77276391,9.99e-05,2]
[348401172,1736511043725,-845.30637334,9.99e-05,2]
[348401173,1736511043735,-2326.004,9.992e-05,2]
[348401174,1736511043745,-171.678,9.992e-05,2]
[348401175,1736511043755,-3233.7019084,9.992e-05,2]
[348401176,1736511043765,-2112.8085604,9.992e-05,2]
[348401177,1736511043775,-1000.12078,9.992e-05,2]
[348401179,1736511043785,-523.49,9.993e-05,2]
[348401181,1736511043797,-500.0,9.993e-05,2]
[348401182,1736511043807,-500.0,9.993e-05,2]
[348401183,1736511043819,-500.0,9.993e-05,2]
[348401184,1736511043829,-500.0,9.993e-05,2]
[348401185,1736511043840,-500.0,9.993e-05,2]
[348401186,1736511043851,-500.0,9.993e-05,2]
[348401187,1736511043861,-500.0,9.993e-05,2]
[348401189,1736511043872,-500.0,9.993e-05,2]
[348401191,1736511043883,-500.0,9.993e-05,2]
[348401193,1736511043893,-500.0,9.993e-05,2]
[348401196,1736511043904,-500.0,9.993e-05,2]
[348401197,1736511043915,-500.0,9.993e-05,2]
[348401198,1736511043924,-500.0,9.993e-05,2]
[348401199,1736511043935,-500.0,9.993e-05,2]
[348401200,1736511043945,-500.0,9.993e-05,2]
[348401201,1736511043956,-3123.6436184,9.993e-05,2]
[348401202,1736511043969,-500.0,9.993e-05,2]
[348401203,1736511043980,-500.0,9.993e-05,2]
[348401204,1736511043991,-500.0,9.993e-05,2]
[348401205,1736511044002,-500.0,9.993e-05,2]
[348401206,1736511044012,-500.0,9.993e-05,2]
[348401207,1736511044022,-500.0,9.993e-05,2]
[348401208,1736511044033,-571.61249942,9.993e-05,2]
[348401209,1736511044044,-500.0,9.993e-05,2]
[348401210,1736511044054,-550.48,9.993e-05,2]
[348401212,1736511044064,-2040.899614,9.993e-05,2]
[348401213,1736511044076,-500.0,9.993e-05,2]
[348401214,1736511044087,-500.0,9.993e-05,2]
[348401215,1736511044098,-500.0,9.993e-05,2]
[348401216,1736511044109,-966.0819026,9.993e-05,2]
[348401217,1736511044119,-500.0,9.993e-05,2]
[348401218,1736511044131,-500.0,9.993e-05,2]
[348401219,1736511044141,-500.0,9.993e-05,2]
[348401220,1736511044151,-627.42,9.993e-05,2]
[348401221,1736511044161,-500.0,9.993e-05,2]
[348401222,1736511044171,-607.67,9.993e-05,2]
[348401223,1736511044182,-569.59,9.993e-05,2]
[348401224,1736511044193,-500.0,9.993e-05,2]
[348401225,1736511044203,-500.0,9.993e-05,2]
[348401226,1736511044215,-500.0,9.993e-05,2]
[348401227,1736511044226,-509.05,9.993e-05,2]
[348401228,1736511044237,-500.0,9.993e-05,2]
[348401229,1736511044247,-500.0,9.993e-05,2]
[348401230,1736511044257,-500.0,9.993e-05,2]
[348401231,1736511044267,-500.0,9.993e-05,2]
[348401232,1736511044278,-500.0,9.993e-05,2]
[348401233,1736511044288,-562.17312809,9.993e-05,2]
[348401234,1736511044299,-574.47,9.993e-05,2]
[348401235,1736511044309,-500.0,9.993e-05,2]
[348401236,1736511044320,-500.0,9.993e-05,2]
[348401237,1736511044331,-500.0,9.993e-05,2]
[348401238,1736511044340,-650.3,9.993e-05,2]
[348401239,1736511044711,-542.73,9.993e-05,2]
[348401240,1736511044733,-1683.62,9.993e-05,2]
[348401241,1736511044745,-500.0,9.993e-05,2]
[348401242,1736511044755,-522.85,9.993e-05,2]
[348401243,1736511044764,-587.49,9.993e-05,2]
[348401244,1736511044773,-1289.42,9.993e-05,2]
[348401245,1736511044783,-500.0,9.993e-05,2]
[348401246,1736511044792,-4925.55,9.993e-05,2]
[348401247,1736511044801,-500.0,9.993e-05,2]
[348401248,1736511044811,-554.98,9.993e-05,2]
[348401249,1736511044820,-500.0,9.993e-05,2]
[348401250,1736511044829,-500.0,9.993e-05,2]
[348401251,1736511044838,-500.0,9.993e-05,2]
[348401252,1736511044847,-879.35,9.993e-05,2]
[348401253,1736511044856,-500.0,9.993e-05,2]
[348401254,1736511044865,-630.14,9.993e-05,2]
[348401255,1736511044874,-948.17,9.993e-05,2]
[348401256,1736511044883,-500.0,9.993e-05,2]
[348401257,1736511044892,-1375.22,9.993e-05,2]
[348401258,1736511044902,-643.74,9.993e-05,2]
[348401259,1736511044911,-813.95,9.993e-05,2]
[348401260,1736511044921,-500.0,9.993e-05,2]
[348401261,1736511044931,-712.54,9.993e-05,2]
[348401262,1736511044940,-627.7,9.993e-05,2]
[348401263,1736511044949,-2168.57,9.993e-05,2]
[348401264,1736511044958,-776.55,9.993e-05,2]
[348401265,1736511044968,-715.02,9.993e-05,2]
[348401266,1736511044977,-500.0,9.993e-05,2]
[348401267,1736511044987,-586.4,9.993e-05,2]
[348401268,1736511044997,-500.0,9.993e-05,2]
[348401269,1736511045006,-872.87,9.993e-05,2]
[348401270,1736511045015,-1118.93,9.993e-05,2]
[348401271,1736511045026,-1946.46,9.993e-05,2]
[348401272,1736511045036,-660.59,9.993e-05,2]
[348401273,1736511045046,-1058.38,9.993e-05,2]
[348401274,1736511045056,-500.0,9.993e-05,2]
[348401275,1736511045065,-998.95,9.993e-05,2]
[348401276,1736511045074,-500.0,9.993e-05,2]
[348401277,1736511045084,-1653.62,9.993e-05,2]
[348401278,1736511045094,-575.26,9.993e-05,2]
[348401279,1736511045103,-500.0,9.993e-05,2]
[348401280,1736511045112,-2112.78,9.993e-05,2]
[348401281,1736511045122,-638.91,9.993e-05,2]
[348401282,1736511045131,-500.0,9.994e-05,2]
[348401283,1736511045141,-500.0,9.994e-05,2]
[348401284,1736511045150,-500.0,9.994e-05,2]
[348401285,1736511045159,-500.0,9.994e-05,2]
[348401286,1736511045168,-500.0,9.994e-05,2]
[348401287,1736511045177,-514.33,9.994e-05,2]
[348401288,1736511045186,-500.0,9.994e-05,2]
[348401289,1736511045195,-500.0,9.994e-05,2]
[348401290,1736511045204,-500.0,9.994e-05,2]
[348401291,1736511045214,-500.0,9.994e-05,2]
[348401292,1736511045224,-500.0,9.994e-05,2]
[348401293,1736511045233,-500.0,9.994e-05,2]
[348401294,1736511045242,-500.0,9.994e-05,2]
[348401295,1736511045251,-500.0,9.994e-05,2]
[348401296,1736511045260,-500.0,9.994e-05,2]
[348401297,1736511045269,-500.0,9.994e-05,2]
[348401298,1736511045278,-500.0,9.994e-05,2]
[348401299,1736511045289,-500.0,9.994e-05,2]
[348401300,1736511045298,-500.0,9.994e-05,2]
[348401301,1736511045307,-500.0,9.994e-05,2]
[348401302,1736511045316,-500.0,9.994e-05,2]
[348401303,1736511045325,-502.48217159,9.994e-05,2]
[348401304,1736511045334,-500.0,9.994e-05,2]
[348401305,1736511045343,-1647.97398634,9.994e-05,2]
[348401306,1736511045352,-574.97149228,9.994e-05,2]
[348401307,1736511045361,-500.0,9.994e-05,2]
[348401308,1736511045370,-500.0,9.994e-05,2]
[348401309,1736511045379,-502.03170886,9.994e-05,2]
[348401310,1736511045389,-506.76067206,9.994e-05,2]
[348401311,1736511045398,-500.0,9.994e-05,2]
[348401312,1736511045408,-1579.36,9.994e-05,2]
[348401313,1736511045417,-500.0,9.994e-05,2]
[348401314,1736511045426,-500.0,9.994e-05,2]
[348401315,1736511045435,-500.0,9.994e-05,2]
[348401316,1736511045444,-2462.03,9.994e-05,2]
[348401317,1736511045454,-500.0,9.994e-05,2]
[348401318,1736511045463,-1015.87,9.994e-05,2]
[348401319,1736511045473,-2237.71,9.994e-05,2]
[348401320,1736511045482,-843.32,9.994e-05,2]
[348401321,1736511045491,-675.74,9.994e-05,2]
[348401322,1736511045501,-984.54,9.994e-05,2]
[348401323,1736511045510,-618.87,9.996e-05,2]
[348401324,1736511045520,-1162.9,9.996e-05,2]
[348401325,1736511045529,-502.73,9.996e-05,2]
[348401326,1736511045538,-1144.51,9.996e-05,2]
[348401327,1736511045547,-1261.2,9.996e-05,2]
[348401328,1736511045556,-574.47,9.996e-05,2]
[348401329,1736511045565,-738.45,9.996e-05,2]
[348401330,1736511045574,-505.25,9.996e-05,2]
[348401331,1736511045583,-1269.29,9.996e-05,2]
[348401332,1736511045592,-865.68,9.996e-05,2]
[348401333,1736511045601,-565.08,9.996e-05,2]
[348401334,1736511045610,-500.0,9.996e-05,2]
[348401335,1736511045620,-916.08,9.996e-05,2]
[348401336,1736511045633,-796.33,9.997e-05,2]
[348401337,1736511045642,-965.16,9.997e-05,2]
[348401338,1736511045651,-500.0,9.997e-05,2]
[348401339,1736511045660,-894.37,9.997e-05,2]
[348401340,1736511045671,-500.0,9.997e-05,2]
[348401341,1736511045680,-630.79,9.997e-05,2]
[348401342,1736511045690,-623.55,9.997e-05,2]
[348401343,1736511045700,-7525.91,9.997e-05,2]
[348401344,1736511045711,-709.8,9.997e-05,2]
[348401345,1736511045720,-977.63,9.997e-05,2]
[348401346,1736511045729,-1166.17,9.997e-05,2]
[348401347,1736511045738,-1540.61,9.997e-05,2]
[348401348,1736511045748,-1054.8,9.997e-05,2]
[348401349,1736511045757,-899.56,9.997e-05,2]
[348401350,1736511045765,-1983.5,9.997e-05,2]
[348401351,1736511045774,-4801.44,9.997e-05,2]
[348401352,1736511045783,-559.12,9.997e-05,2]
[348401353,1736511045792,-3125.64,9.997e-05,2]
[348401354,1736511045802,-1547.76,9.997e-05,2]
[348401355,1736511045812,-1422.24,9.997e-05,2]
[348401356,1736511045821,-500.0,9.997e-05,2]